bitfinex-derivatives/quotes_BTCF0:USTF0_20250216
["timestamp","ask_amount","ask_price","bid_price","bid_amount"]
[1739668584148,0.266257,97626.0,97612.0,0.0329]
[1739668585455,0.627057,97626.0,97612.0,0.0329]
[1739668586542,0.627057,97626.0,97625.0,0.00115359]
[1739668587251,0.67686705,97626.0,97625.0,0.00115359]
[1739668589857,0.627057,97626.0,97625.0,0.00115359]
[1739668594778,0.627057,97626.0,97625.0,2.186e-05]
[1739668600480,0.67686809,97626.0,97625.0,2.186e-05]
[1739668601073,0.2662922,97613.0,97612.0,0.0329]
[1739668602979,0.2672922,97613.0,97612.0,0.0389]
[1739668603586,0.27735956,97613.0,97612.0,0.0389]
[1739668603781,0.27835956,97613.0,97612.0,0.0409]
[1739668614382,0.2682922,97613.0,97612.0,0.0409]
[1739668615494,0.31810287,97613.0,97612.0,0.0409]
[1739668616896,0.3284546,97613.0,97612.0,0.0409]
[1739668618992,0.27864393,97613.0,97612.0,0.0409]
[1739668622394,0.18422252,97619.0,97612.0,0.0409]
[1739668622594,0.18422252,97619.0,97618.0,0.2662786]
[1739668622896,0.0001536,97622.0,97621.0,0.2662704]
[1739668623686,0.21448758,97631.0,97620.0,0.3608]
[1739668623883,0.21448758,97631.0,97630.0,0.2662459]
[1739668624993,0.2249934,97631.0,97630.0,0.2662459]
[1739668625693,0.2259934,97631.0,97630.0,0.2662459]
[1739668625992,0.2269934,97631.0,97630.0,0.2662459]
[1739668627196,0.01250582,97631.0,97630.0,0.2662459]
[1739668629199,0.01250582,97631.0,97623.0,0.0308]
[1739668629498,0.2662494,97629.0,97623.0,0.2970648]
[1739668629997,0.2662494,97629.0,97623.0,0.0308]
[1739668630190,0.2662494,97629.0,97624.0,0.2662601]
[1739668630386,0.2662494,97629.0,97623.0,0.0308]
[1739668630596,0.2662494,97629.0,97625.0,0.2662586]
[1739668631795,0.2672494,97629.0,97625.0,0.2662586]
[1739668632402,0.001,97629.0,97623.0,0.0308]
[1739668632602,0.2662621,97625.0,97623.0,0.0308]
[1739668634410,0.3608,97624.0,97623.0,0.0308]
[1739668634615,0.49148,97624.0,97623.0,0.0308]
[1739668634903,0.49148,97624.0,97623.0,0.0318]
[1739668635306,0.49148,97624.0,97623.0,0.0328]
[1739668640099,0.49148,97624.0,97623.0,0.00099628]
[1739668640295,0.394,97624.0,97623.0,0.00099628]
[1739668649512,0.0332,97624.0,97623.0,0.00099628]
[1739668650914,0.0332,97624.0,97623.0,0.03419628]
[1739668651114,0.0332,97624.0,97623.0,0.00099628]
[1739668656822,0.18627941,97624.0,97623.0,0.00099628]
[1739668658722,0.18627941,97624.0,97623.0,0.03389628]
[1739668660419,0.08300734,97624.0,97623.0,0.03389628]
[1739668664118,0.04980734,97624.0,97623.0,0.03389628]
[1739668665422,0.04980734,97624.0,97623.0,0.00099628]
[1739668689341,0.41060734,97624.0,97623.0,0.00099628]
[1739668701047,0.67686954,97624.0,97623.0,0.00099628]
[1739668701952,0.86036173,97624.0,97623.0,0.00099628]
[1739668709559,0.67686954,97624.0,97623.0,0.00099628]
[1739668710360,0.67686954,97624.0,97623.0,2.589e-05]
[1739668716949,0.2663004,97610.0,97609.0,0.0627]
[1739668717271,0.6271004,97610.0,97609.0,0.0627]
[1739668717952,0.6281004,97610.0,97609.0,0.0687]
[1739668718155,0.6291004,97610.0,97609.0,0.0707]
[1739668719765,0.79281894,97610.0,97609.0,0.0707]
[1739668723763,0.6395234,97610.0,97609.0,0.0707]
[1739668746297,0.79281894,97610.0,97609.0,0.0707]
[1739668749998,0.68933585,97610.0,97609.0,0.0707]
[1739668752599,0.32853585,97610.0,97609.0,0.0707]
[1739668752796,0.68933585,97610.0,97609.0,0.0707]
[1739668761198,0.42303545,97610.0,97609.0,0.0707]
[1739668762391,0.06223545,97610.0,97609.0,0.0707]
[1739668765002,0.012423,97610.0,97609.0,0.0707]
[1739668768703,0.002,97610.0,97609.0,0.0707]
[1739668772302,0.002,97610.0,97609.0,0.1025]
[1739668777207,0.002,97610.0,97609.0,0.4633]
[1739668777402,0.18395465,97617.0,97616.0,0.266284]
[1739668778411,0.18395465,97617.0,97616.0,0.268284]
[1739668778606,0.54490825,97619.0,97618.0,0.2662786]
[1739668779215,0.54490825,97619.0,97618.0,0.2966786]
[1739668780512,0.18410825,97619.0,97618.0,0.2996786]
[1739668780711,0.18410825,97619.0,97618.0,0.3328786]
[1739668781010,0.18410825,97619.0,97618.0,0.3358786]
[1739668782207,0.0001536,97619.0,97618.0,0.3358786]
[1739668796408,0.0001536,97619.0,97618.0,0.3026786]
[1739668796812,0.0001536,97619.0,97618.0,0.2722786]
[1739668801616,0.2664296,97619.0,97618.0,0.006]
[1739668811119,0.2992296,97619.0,97618.0,0.006]
[1739668816819,0.2664296,97619.0,97618.0,0.037]
[1739668817629,0.0001536,97619.0,97618.0,0.037]
[1739668817830,0.0001536,97619.0,97618.0,0.0679]
[1739668850054,0.0001536,97619.0,97618.0,0.037]
[1739668850351,0.0001536,97619.0,97618.0,0.006]
[1739668856348,0.0948536,97619.0,97618.0,0.006]
[1739668866349,0.0633536,97619.0,97618.0,0.006]
[1739668866554,0.0001536,97619.0,97618.0,0.0368]
[1739668866758,0.0001536,97619.0,97618.0,0.4293]
[1739668870162,0.0001536,97619.0,97618.0,0.43953781]
[1739668876257,0.0001536,97619.0,97618.0,0.47073781]
[1739668878479,0.0001536,97619.0,97618.0,0.4605]
[1739668880570,0.0001536,97619.0,97618.0,0.47052282]
[1739668888279,0.0001536,97619.0,97618.0,0.43932282]
[1739668888781,0.0001536,97619.0,97618.0,0.4293]
[1739668888983,0.0001536,97619.0,97618.0,0.61359065]
[1739668889370,0.0001536,97619.0,97618.0,0.55109065]
[1739668889778,0.0915536,97619.0,97618.0,0.55109065]
[1739668892072,0.0915536,97619.0,97618.0,0.3668]
[1739668906983,0.0609536,97619.0,97618.0,0.3988]
[1739668919200,0.0305536,97619.0,97618.0,0.3988]
[1739668919508,0.0305536,97619.0,97618.0,0.4306]
[1739668920596,0.0001536,97619.0,97618.0,0.4306]
[1739668920797,0.15328781,97625.0,97624.0,0.2662624]
[1739668921294,0.15328781,97625.0,97624.0,0.27643613]
[1739668921506,0.032,97649.0,97624.0,0.01017373]
[1739668921703,1.10720758,97648.0,97647.0,0.2661996]
[1739668922002,0.21448758,97648.0,97647.0,0.2661996]
[1739668922700,0.21448758,97648.0,97647.0,0.6269996]
[1739668923513,0.22148758,97648.0,97647.0,0.6269996]
[1739668924793,0.22748758,97648.0,97647.0,0.6279996]
[1739668928007,0.013,97648.0,97647.0,0.6279996]
[1739668935804,0.013,97648.0,97647.0,0.2671996]
[1739668953534,0.13,97656.0,97655.0,0.2661778]
[1739668953722,0.0314,97656.0,97655.0,0.2661778]
[1739668954116,0.0001536,97657.0,97655.0,0.3306778]
[1739668954422,0.0001536,97657.0,97655.0,0.3610778]
[1739668954722,0.0001536,97657.0,97655.0,0.3306778]
[1739668955422,0.0001536,97657.0,97655.0,0.3316778]
[1739668955627,0.007,97656.0,97655.0,0.3316778]
[1739668956026,0.013,97656.0,97655.0,0.3326778]
[1739668956326,0.006,97656.0,97655.0,0.3326778]
[1739668956521,0.0071536,97657.0,97655.0,0.3326778]
[1739668956727,0.0131536,97657.0,97655.0,0.3326778]
[1739668956928,0.0061536,97657.0,97655.0,0.3316778]
[1739668957122,0.004,97656.0,97655.0,0.3326778]
[1739668957525,0.004,97656.0,97655.0,0.34289444]
[1739668958730,0.0348,97656.0,97655.0,0.34289444]
[1739668959124,0.0318,97656.0,97655.0,0.34289444]
[1739668959325,0.0378,97656.0,97655.0,0.34289444]
[1739668959826,0.0378,97656.0,97655.0,0.34189444]
[1739668960130,0.0448,97656.0,97655.0,0.34289444]
[1739668961428,0.013,97656.0,97655.0,0.34289444]
[1739668963130,0.0453,97656.0,97655.0,0.34289444]
[1739668965335,0.0453,97656.0,97655.0,0.31109444]
[1739668968138,0.0453,97656.0,97655.0,0.27839444]
[1739668972643,0.0453,97656.0,97655.0,0.46252957]
[1739668974342,0.0453,97656.0,97655.0,0.27839444]
[1739668974942,0.0453,97656.0,97655.0,0.2681778]
[1739668979343,0.0453,97656.0,97655.0,0.002]
[1739669010377,0.1983911,97656.0,97655.0,0.002]
[1739669011882,0.5591911,97656.0,97655.0,0.002]
[1739669015374,0.4061,97656.0,97655.0,0.002]
[1739669019592,0.45589113,97656.0,97655.0,0.002]
[1739669020881,0.4061,97656.0,97655.0,0.002]
[1739669029296,0.4061,97656.0,97641.0,0.0318]
[1739669029498,0.3608,97648.0,97644.0,0.18425647]
[1739669029988,0.0622,97647.0,97644.0,0.18425647]
[1739669030185,0.3283997,97647.0,97644.0,0.18425647]
[1739669030385,0.3283997,97647.0,97646.0,0.0011536]
[1739669030995,0.3283997,97647.0,97646.0,0.0001536]
[1739669031992,0.3283997,97647.0,97646.0,0.0011536]
[1739669032199,0.2662051,97645.0,97644.0,0.18425647]
[1739669032789,0.27648849,97645.0,97644.0,0.18425647]
[1739669033794,0.28048849,97645.0,97644.0,0.18425647]
[1739669034190,0.01428339,97645.0,97639.0,0.0306]
[1739669034499,0.2662188,97640.0,97639.0,0.0306]
[1739669035594,0.2662188,97640.0,97639.0,0.0316]
[1739669036198,0.3608,97640.0,97633.0,0.00094433]
[1739669036395,0.2662316,97636.0,97633.0,0.03334433]
[1739669036698,0.0317,97639.0,97633.0,0.03334433]
[1739669036894,0.2662351,97634.0,97633.0,0.03334433]
[1739669038022,0.2662351,97634.0,97633.0,0.00094433]
[1739669039195,0.2682351,97634.0,97633.0,0.00094433]
[1739669039696,0.2692351,97634.0,97633.0,0.00094433]
[1739669043909,0.2692351,97634.0,97632.0,0.24568922]
[1739669044805,0.003,97634.0,97622.0,0.0651]
[1739669044997,0.6270515,97628.0,97622.0,0.0651]
[1739669045804,0.6270515,97628.0,97623.0,0.2662644]
[1739669047111,0.6270515,97628.0,97627.0,0.00253608]
[1739669049107,0.63724557,97628.0,97627.0,0.00253608]
[1739669057605,0.27644557,97628.0,97627.0,0.00253608]
[1739669060606,0.63724557,97628.0,97627.0,0.00253608]
[1739669066415,0.2662515,97628.0,97627.0,0.00253608]
[1739669067106,0.2662515,97628.0,97627.0,0.03493608]
[1739669067817,0.2662362,97634.0,97628.0,0.2662515]
[1739669068315,0.2662386,97633.0,97628.0,0.2662515]
[1739669068511,0.3608,97631.0,97628.0,0.2662515]
[1739669069920,0.3618,97631.0,97628.0,0.2662515]
[1739669071617,0.001,97631.0,97628.0,0.2662515]
[1739669075515,0.001,97631.0,97628.0,0.45030017]
[1739669078411,0.001,97631.0,97629.0,0.2662485]
[1739669079523,0.27665793,97632.0,97629.0,0.2662485]
[1739669079720,0.001,97631.0,97629.0,0.2662485]
[1739669081925,0.2662488,97629.0,97628.0,0.18404867]
[1739669082627,0.2662569,97626.0,97625.0,0.2662588]
[1739669082827,0.2662624,97624.0,97623.0,0.24568922]
[1739669084620,0.2662624,97624.0,97623.0,0.24768922]
[1739669086126,0.2662624,97624.0,97623.0,0.24968922]
[1739669087124,0.2662624,97624.0,97623.0,0.004]
[1739669092834,0.316073,97624.0,97623.0,0.004]
[1739669096341,0.2662624,97624.0,97623.0,0.004]
[1739669098540,0.6270624,97624.0,97623.0,0.004]
[1739669115356,0.9878624,97624.0,97623.0,0.004]
[1739669115552,1.03767415,97624.0,97623.0,0.004]
[1739669119387,1.22155505,97624.0,97623.0,0.004]
[1739669123860,1.03767415,97624.0,97623.0,0.004]
[1739669132979,1.22155505,97624.0,97623.0,0.004]
[1739669136673,1.03767415,97624.0,97623.0,0.004]
[1739669142387,0.77141175,97624.0,97615.0,0.0647]
[1739669142589,0.6270842,97616.0,97615.0,0.0647]
[1739669143089,0.6270842,97616.0,97615.0,0.033]
[1739669143984,0.6270842,97616.0,97609.0,0.1049513]
[1739669143985,0.3608,97616.0,97609.0,0.1049513]
[1739669144192,0.2663006,97610.0,97609.0,0.1049513]
[1739669145082,0.2663006,97610.0,97609.0,0.1099513]
[1739669145484,0.2673006,97610.0,97609.0,0.1169513]
[1739669145984,0.2683006,97610.0,97609.0,0.1159513]
[1739669146493,0.27856246,97610.0,97609.0,0.1159513]
[1739669154595,0.27856246,97610.0,97609.0,0.011]
[1739669165503,0.32837953,97610.0,97609.0,0.011]
[1739669167701,0.68917953,97610.0,97609.0,0.011]
[1739669170197,0.42287893,97610.0,97600.0,0.1322]
[1739669170497,0.6271251,97601.0,97600.0,0.1322]
[1739669171401,0.6271251,97601.0,97600.0,0.1]
[1739669171702,0.6271251,97601.0,97600.0,0.107]
[1739669171902,0.6271251,97601.0,97600.0,0.112]
[1739669172098,0.6281251,97601.0,97600.0,0.112]
[1739669173504,0.6291251,97601.0,97600.0,0.109]
[1739669180214,0.2683251,97601.0,97600.0,0.109]
[1739669180409,0.6291251,97601.0,97600.0,0.109]
[1739669182103,0.6281251,97601.0,97600.0,0.102]
[1739669182409,0.6291251,97601.0,97600.0,0.104]
[1739669183615,0.6281251,97601.0,97600.0,0.102]
[1739669183910,0.6291251,97601.0,97600.0,0.103]
[1739669189513,0.2683251,97601.0,97600.0,0.103]
[1739669189709,0.6291251,97601.0,97600.0,0.103]
[1739669191021,0.67894477,97601.0,97600.0,0.103]
[1739669197715,0.2663578,97589.0,97588.0,0.0965]
[1739669198817,0.2673578,97589.0,97588.0,0.0985]
[1739669199722,0.2683578,97589.0,97588.0,0.0985]
[1739669202527,0.27863584,97589.0,97588.0,0.0985]
[1739669203425,0.2683578,97589.0,97588.0,0.0985]
[1739669205729,0.27876937,97589.0,97588.0,0.0985]
[1739669205924,0.27876937,97589.0,97588.0,0.0657]
[1739669216429,0.27876937,97589.0,97588.0,0.002]
[1739669229144,0.27776937,97589.0,97588.0,0.002]
[1739669229344,0.01141157,97589.0,97583.0,0.18423756]
[1739669229547,0.2663691,97585.0,97583.0,0.18423756]
[1739669230541,0.2663691,97585.0,97584.0,0.18423756]
[1739669231945,0.2683691,97585.0,97584.0,0.18423756]
[1739669232845,0.002,97585.0,97584.0,0.18423756]
[1739669233043,0.002,97585.0,97584.0,0.21723756]
[1739669235249,0.002,97585.0,97584.0,0.033]
[1739669235449,0.002,97585.0,97583.0,0.2663737]
[1739669235646,0.002,97585.0,97584.0,0.0333]
[1739669238042,0.001,97585.0,97584.0,0.0333]
[1739669238246,0.002,97585.0,97584.0,0.0333]
[1739669238866,0.00015368,97594.0,97584.0,0.34558202]
[1739669239066,0.00015368,97594.0,97593.0,0.2663469]
[1739669240261,0.00015368,97594.0,97593.0,0.27653958]
[1739669240967,0.00115368,97594.0,97593.0,0.27653958]
[1739669241566,0.00215368,97594.0,97593.0,0.27753958]
[1739669242371,0.00215368,97594.0,97593.0,0.27953958]
[1739669242976,0.00215368,97594.0,97593.0,0.2693469]
[1739669258984,0.00215368,97594.0,97593.0,0.6301469]
[1739669259180,0.0332,97599.0,97593.0,0.3638]
[1739669259385,0.13076,97599.0,97598.0,0.2663333]
[1739669259685,0.0332,97599.0,97598.0,0.2663333]
[1739669260896,0.0332,97599.0,97598.0,0.6291333]
[1739669261088,0.0342,97599.0,97598.0,0.6291333]
[1739669261991,0.0332,97599.0,97598.0,0.6311333]
[1739669278211,0.0436303,97599.0,97598.0,0.6311333]
[1739669279711,0.0436303,97599.0,97598.0,0.2703333]
[1739669290117,0.0332,97599.0,97598.0,0.2703333]
[1739669297020,0.2995306,97599.0,97598.0,0.2703333]
[1739669304430,0.2995306,97599.0,97598.0,0.004]
[1739669304721,0.6603306,97599.0,97598.0,0.004]
[1739669317330,0.2995306,97599.0,97598.0,0.004]
[1739669321037,0.2995306,97599.0,97598.0,0.0345]
[1739669323832,0.0332,97599.0,97598.0,0.0345]
[1739669324037,0.01040988,97601.0,97599.0,0.2663306]
[1739669324238,0.0329,97607.0,97606.0,0.2663115]
[1739669324445,0.00015368,97608.0,97606.0,0.2663115]
[1739669324742,0.00015368,97608.0,97607.0,0.0329]
[1739669324957,0.00015368,97608.0,97607.0,0.095]
[1739669327338,0.00015368,97608.0,97607.0,0.1052818]
[1739669327546,0.064,97625.0,97616.0,0.2662841]
[1739669327742,0.064,97625.0,97616.0,0.6270841]
[1739669328442,0.064,97625.0,97618.0,0.2662787]
[1739669328648,0.01050978,97620.0,97618.0,0.2662787]
[1739669328848,0.01050978,97620.0,97618.0,0.2987787]
[1739669329346,0.01050978,97620.0,97618.0,0.30908823]
[1739669329656,0.00553701,97619.0,97618.0,0.30908823]
[1739669330344,0.00953701,97619.0,97618.0,0.30908823]
[1739669333649,0.00953701,97619.0,97618.0,0.34138823]
[1739669345047,0.00953701,97619.0,97618.0,0.27658823]
[1739669355563,0.008,97619.0,97618.0,0.27658823]
[1739669356760,0.008,97619.0,97618.0,0.63738823]
[1739669358051,0.01850333,97619.0,97618.0,0.63738823]
[1739669359281,0.008,97619.0,97618.0,0.63738823]
[1739669364868,0.008,97619.0,97618.0,0.94313033]
[1739669374583,0.008,97619.0,97618.0,0.58233033]
[1739669374781,0.008,97619.0,97618.0,0.94313033]
[1739669377380,0.008,97619.0,97618.0,0.97613033]
[1739669379778,0.008,97619.0,97618.0,1.33693033]
[1739669382179,0.008,97619.0,97618.0,1.35293838]
[1739669383382,0.008,97619.0,97618.0,1.31993838]
[1739669384283,0.008,97619.0,97618.0,1.31993848]
[1739669384785,0.008,97619.0,97618.0,0.59833848]
[1739669384974,0.008,97619.0,97618.0,1.31993848]
[1739669388189,0.008,97619.0,97618.0,1.30393033]
[1739669388385,0.008,97619.0,97618.0,1.3199384]
[1739669390297,0.008,97619.0,97618.0,1.30393033]
[1739669405508,0.064,97625.0,97624.0,0.2662625]
[1739669405700,0.0323,97630.0,97629.0,0.2662489]
[1739669406007,0.0323,97630.0,97629.0,0.6270489]
[1739669407201,0.0383,97630.0,97629.0,0.6280489]
[1739669407708,0.0453,97630.0,97629.0,0.6280489]
[1739669411011,0.013,97630.0,97629.0,0.6280489]
[1739669411802,0.013,97630.0,97629.0,0.6915489]
[1739669412004,0.0324,97636.0,97629.0,0.4253]
[1739669412203,0.0324,97636.0,97635.0,0.2662325]
[1739669413103,0.0394,97636.0,97635.0,0.2662325]
[1739669413906,0.0464,97636.0,97635.0,0.2672325]
[1739669414506,0.0464,97636.0,97635.0,0.27771058]
[1739669415215,0.0464,97636.0,97635.0,0.27871058]
[1739669424518,0.0464,97636.0,97635.0,0.002]
[1739669424725,0.05662264,97636.0,97635.0,0.002]
[1739669426321,0.266238,97633.0,97632.0,0.19554442]
[1739669426716,0.266238,97633.0,97632.0,0.14564442]
[1739669427720,0.273238,97633.0,97632.0,0.14664442]
[1739669428621,0.280238,97633.0,97632.0,0.14764442]
[1739669429724,0.280238,97633.0,97632.0,0.002]
[1739669459175,0.33003795,97633.0,97632.0,0.002]
[1739669463149,0.43360022,97633.0,97632.0,0.002]
[1739669463346,0.53108022,97633.0,97632.0,0.002]
[1739669471757,0.377718,97633.0,97632.0,0.002]
[1739669471955,0.280238,97633.0,97632.0,0.002]
[1739669475561,0.43360022,97633.0,97632.0,0.002]
[1739669475863,0.53108022,97633.0,97632.0,0.002]
[1739669478663,0.42751822,97633.0,97632.0,0.002]
[1739669478872,0.33003822,97633.0,97632.0,0.002]
[1739669484770,0.06380022,97633.0,97632.0,0.002]
[1739669485068,0.16128022,97633.0,97632.0,0.2682406]
[1739669485370,0.06380022,97633.0,97632.0,0.2682406]
[1739669485573,0.014,97633.0,97632.0,0.2682406]
[1739669486281,0.117638,97634.0,97632.0,0.2682406]
[1739669486472,0.00015368,97639.0,97638.0,0.2662243]
[1739669486672,0.00015368,97639.0,97638.0,0.6270243]
[1739669489170,0.00215368,97639.0,97638.0,0.6280243]
[1739669489478,0.00315368,97639.0,97638.0,0.6290243]
[1739669489673,0.00315368,97639.0,97638.0,0.7242243]
[1739669491971,0.00315368,97639.0,97638.0,0.3634243]
[1739669492375,0.00315368,97639.0,97638.0,0.0667]
[1739669492677,0.06735368,97639.0,97638.0,0.0667]
[1739669495372,0.07742265,97639.0,97638.0,0.0667]
[1739669495980,0.06735368,97639.0,97638.0,0.0667]
[1739669498774,0.0774868,97639.0,97638.0,0.0667]
[1739669499082,0.06735368,97639.0,97638.0,0.0667]
[1739669499300,0.06735368,97639.0,97638.0,0.3329243]
[1739669500274,0.03535368,97639.0,97638.0,0.3329243]
[1739669501082,0.03535368,97639.0,97638.0,0.34893127]
[1739669502081,0.03535368,97639.0,97638.0,0.3329243]
[1739669503483,0.3608,97666.0,97638.0,0.0667]
[1739669503789,0.0318,97650.0,97649.0,0.2661943]
[1739669505986,0.0318,97650.0,97649.0,0.2671943]
[1739669506987,0.0318,97650.0,97649.0,0.2681943]
[1739669511693,0.2979916,97650.0,97649.0,0.2681943]
[1739669513882,0.6587916,97650.0,97649.0,0.002]
[1739669519586,0.81222502,97650.0,97649.0,0.002]
[1739669525897,0.45142502,97650.0,97649.0,0.002]
[1739669526801,0.45142502,97650.0,97649.0,0.2681943]
[1739669526993,0.18523342,97650.0,97649.0,0.2681943]
[1739669528897,0.18523342,97650.0,97649.0,0.002]
[1739669529499,0.0318,97650.0,97649.0,0.002]
[1739669529701,0.12984,97650.0,97649.0,0.002]
[1739669532796,0.49064,97650.0,97649.0,0.002]
[1739669541697,0.49064,97650.0,97639.0,0.18407826]
[1739669541898,0.2662189,97640.0,97639.0,0.18407826]
[1739669542306,0.3596189,97640.0,97639.0,0.18407826]
[1739669543113,0.3596189,97640.0,97639.0,0.18607826]
[1739669544708,0.3596189,97640.0,97639.0,0.002]
[1739669547916,0.51300785,97640.0,97639.0,0.002]
[1739669551813,0.3596189,97640.0,97639.0,0.002]
[1739669556314,0.7204189,97640.0,97639.0,0.002]
[1739669559327,0.2662461,97630.0,97629.0,0.00015368]
[1739669559522,0.6270461,97630.0,97629.0,0.00015368]
[1739669560717,0.6290461,97630.0,97629.0,0.00115368]
[1739669560912,0.2702461,97630.0,97629.0,0.00115368]
[1739669561118,0.6310461,97630.0,97629.0,0.00115368]
[1739669564319,0.64142034,97630.0,97629.0,0.00115368]
[1739669573331,0.79480929,97630.0,97629.0,0.00115368]
[1739669576433,0.691224,97630.0,97629.0,0.00115368]
[1739669582641,0.41460366,97630.0,97629.0,0.26740248]
[1739669588726,0.05380366,97630.0,97629.0,0.26740248]
[1739669592637,0.15748443,97630.0,97629.0,0.26740248]
[1739669595941,0.18798443,97630.0,97629.0,0.00115368]
[1739669596142,0.54878443,97630.0,97629.0,0.00115368]
[1739669596951,0.3953,97630.0,97629.0,0.00115368]
[1739669597348,0.3953,97630.0,97622.0,0.18407826]
[1739669597545,0.7561,97630.0,97622.0,0.18407826]
[1739669598542,0.2662652,97623.0,97622.0,0.18407826]
[1739669598943,0.2662652,97623.0,97622.0,0.18507826]
[1739669599742,0.2692652,97623.0,97622.0,0.18407826]
[1739669600757,0.2712652,97623.0,97622.0,0.18407826]
[1739669601152,0.2712652,97623.0,97616.0,0.00015368]
[1739669601153,0.0548061,97623.0,97616.0,0.00015368]
[1739669601347,0.2662816,97617.0,97616.0,0.00015368]
[1739669601747,0.2971816,97617.0,97616.0,0.00015368]
[1739669603144,0.2991816,97617.0,97616.0,0.00015368]
[1739669603357,0.30961201,97617.0,97616.0,0.00015368]
[1739669603855,0.31061201,97617.0,97616.0,0.00015368]
[1739669617957,0.2663116,97606.0,97605.0,0.18407826]
[1739669618160,0.6271116,97606.0,97605.0,0.18407826]
[1739669618997,0.3608,97606.0,97601.0,0.24573399]
[1739669619172,0.266334,97598.0,97597.0,0.18416143]
[1739669620361,0.27638564,97598.0,97597.0,0.18416143]
[1739669620865,0.63718564,97598.0,97597.0,0.18816143]
[1739669621068,0.63718564,97598.0,97597.0,0.19316143]
[1739669623378,0.63718564,97598.0,97597.0,0.009]
[1739669624282,0.37085164,97598.0,97582.0,0.3608]
[1739669624471,0.2663533,97591.0,97583.0,0.0634]
[1739669624667,0.3270569,97590.0,97583.0,0.0634]
[1739669625775,0.0607,97590.0,97583.0,0.0634]
[1739669626082,0.2663614,97588.0,97583.0,0.0634]
[1739669626476,0.2663614,97588.0,97586.0,0.00853681]
[1739669627078,0.2663614,97588.0,97586.0,0.01553681]
[1739669627278,0.2673614,97588.0,97586.0,0.01553681]
[1739669633087,0.2673614,97588.0,97586.0,0.014]
[1739669637382,0.2673614,97588.0,97586.0,0.2803654]
[1739669645885,0.001,97588.0,97586.0,0.2803654]
[1739669652798,0.0301,97605.0,97603.0,0.2663197]
[1739669652989,0.0301,97605.0,97604.0,0.0923]
[1739669653185,0.15309047,97606.0,97605.0,0.2663142]
[1739669653390,0.15309047,97606.0,97605.0,0.27673689]
[1739669654693,0.15309047,97610.0,97607.0,0.2663088]
[1739669656402,0.15309047,97610.0,97607.0,0.2673088]
[1739669657088,0.15309047,97610.0,97607.0,0.2683088]
[1739669658895,0.0311,97613.0,97607.0,0.2683088]
[1739669660199,0.0311,97613.0,97607.0,0.002]
[1739669660401,0.0311,97613.0,97610.0,0.2662985]
[1739669661391,0.0321,97613.0,97610.0,0.2662985]
[1739669662100,0.0311,97613.0,97611.0,0.2662973]
[1739669662302,0.0321,97613.0,97611.0,0.2662973]
[1739669663007,0.0331,97613.0,97611.0,0.2662973]
[1739669664299,0.2662951,97612.0,97611.0,0.2662973]
[1739669691216,0.41938557,97612.0,97611.0,0.2662973]
[1739669694218,0.2662951,97612.0,97611.0,0.2662973]
[1739669703318,0.2663143,97605.0,97604.0,0.0309]
[1739669703823,0.2663194,97604.0,97602.0,0.24591416]
[1739669704020,0.0307,97603.0,97602.0,0.51171626]
[1739669704621,0.0307,97603.0,97602.0,0.24539416]
[1739669705127,0.0639,97603.0,97602.0,0.24539416]
[1739669705723,0.07435934,97603.0,97602.0,0.24539416]
[1739669706324,0.07435934,97603.0,97602.0,0.24839416]
[1739669706528,0.07435934,97603.0,97602.0,0.25039416]
[1739669706726,0.07435934,97603.0,97602.0,0.005]
[1739669707120,0.0639,97603.0,97602.0,0.005]
[1739669707321,0.0307,97603.0,97602.0,0.005]
[1739669707722,0.15309047,97609.0,97608.0,0.2663061]
[1739669709131,0.15309047,97609.0,97608.0,0.2673061]
[1739669709729,0.15309047,97609.0,97608.0,0.2683061]
[1739669710228,0.04348209,97612.0,97608.0,0.2683061]
[1739669710816,0.04348209,97612.0,97608.0,0.002]
[1739669711016,0.04348209,97612.0,97609.0,0.2663024]
[1739669714327,0.04348209,97612.0,97610.0,0.2662999]
[1739669717238,0.30977759,97612.0,97610.0,0.2662999]
[1739669721640,0.46286806,97612.0,97610.0,0.2662999]
[1739669721839,0.19657256,97612.0,97603.0,0.0312]
[1739669722041,0.2663075,97608.0,97604.0,0.2663164]
[1739669722635,0.2663075,97608.0,97605.0,0.2663132]
[1739669723744,0.0329,97611.0,97605.0,0.2663132]
[1739669723937,0.2663115,97607.0,97605.0,0.2663132]
[1739669724138,0.0328,97606.0,97605.0,0.2663132]
[1739669724844,0.0328,97606.0,97605.0,0.2673132]
[1739669725350,0.0328,97606.0,97605.0,0.2683132]
[1739669726047,0.0328,97606.0,97605.0,0.2673132]
[1739669726245,0.0328,97606.0,97605.0,0.2693132]
[1739669730352,0.0328,97606.0,97605.0,0.003]
[1739669730649,0.13176,97606.0,97605.0,0.003]
[1739669735752,0.3980715,97606.0,97605.0,0.003]
[1739669735952,0.2991115,97606.0,97605.0,0.003]
[1739669737452,0.6599115,97606.0,97605.0,0.003]
[1739669741255,0.89379468,97606.0,97605.0,0.003]
[1739669742050,0.89379468,97606.0,97605.0,0.00021209]
[1739669744062,0.70972794,97606.0,97605.0,0.00021209]
[1739669761280,0.67692794,97606.0,97605.0,0.00021209]
[1739669762078,0.31612794,97606.0,97605.0,0.00021209]
[1739669762278,0.04981644,97606.0,97605.0,0.00021209]
[1739669764086,0.18406674,97609.0,97605.0,0.00021209]
[1739669764087,0.18406674,97609.0,97608.0,0.2663061]
[1739669767390,0.0102845,97612.0,97604.0,0.54505933]
[1739669767687,0.0333,97614.0,97613.0,0.2662924]
[1739669768291,0.0333,97614.0,97613.0,0.3282924]
[1739669770091,0.0343,97614.0,97613.0,0.3282924]
[1739669770297,0.0363,97614.0,97613.0,0.3282924]
[1739669770899,0.04643293,97614.0,97613.0,0.3282924]
[1739669776600,0.04343293,97614.0,97613.0,0.3282924]
[1739669776800,0.0353,97614.0,97613.0,0.3282924]
[1739669777899,0.0363,97614.0,97613.0,0.3282924]
[1739669779803,0.04679127,97614.0,97613.0,0.3282924]
[1739669780103,0.04479127,97614.0,97613.0,0.3282924]
[1739669780398,0.04579127,97614.0,97613.0,0.3282924]
[1739669781895,0.0353,97614.0,97613.0,0.3282924]
[1739669783207,0.0353,97614.0,97613.0,0.2980924]
[1739669783403,0.0333,97614.0,97613.0,0.2980924]
[1739669783603,0.04453663,97614.0,97613.0,0.2980924]
[1739669784104,0.04553663,97614.0,97613.0,0.2980924]
[1739669785006,0.04453663,97614.0,97613.0,0.2662924]